Workbook

Sheet Introduction
A1: Introduction to the Northern Zone Birds & Mammals calculator tool
A3: This calculator tool has been developed as a supplement to the document "Pesticide risk assessment for birds and mammals".
A4: The aim of the document is to present standard scenarios for higher tier risk assessment in the Nordic Zone.
A5: The scenarios shall be used whenever the standard tier 1 scenarios (EFSA calculator tool) do not indicate safe use.
A7: All values for RUD, energy and moisture content, assimilation efficiency etc. used in the calculations are from Appendices J and G of the EFSA Guidance Document (EFSA Journal 2023: 21(2):7790).
A8: NB! Please notice that the spreadsheets "species", "species Seed Treatment 2" and "diets" are used as reference data sheets in the calculations and that NO CHANGES should be made to these sheets.
A10: Please follow the steps below when using the calculator tool. Further guidance is provided as comments (tip texts) to selected fields in the spreadsheets.
A12: Risk assessment for sprayed compounds:
A14: Step 0 | B14: Risk assessment for sprayed compounds is performed using the "Birds" and "Mammals" spreadsheets.
A16: Step 1 | B16: Please enter basic data on substance, use, toxicity etc.
A18: Step 2 | B18: In cell C11 please select "Y" if the fTWA can be used in the long term risk assessment or "N" if the fTWA cannot be used.
A20: Step 3 | B20: Select a focal species that is appropriate for the crop, application scenario and growth stage in question, based upon the summary tables in chapter 7 and the relevant species accounts in chapter 6 of the document (or new summary table 6.1 for additional crop groups).
B21: When a species is selected in the spreadsheet, a species-specific body weight is shown and a corresponding Daily Energy Expenditure is calculated, based upon an allometric relationship between body weight and DEE.
A23: Step 4 | B23: Select a diet that is appropriate for the species, crop and time period in question. Please refer to the species accounts (paragraph "risk assessment") in chapter 6 of the document for further guidance on this subject.
B24: The proportion of diet made up by each food type shall be entered into the "PD" column. Please remember indicating (by selection) whether the entered diet is measured as fresh weight or dry weight
B25: (notice that volume % is considered equivalent to fresh weight %).
A27: Step 5 | B27: In the "MAF estimation" tab calculate the MAFrepro and MAFvar and add the in cells H8 and H9 respectively.
A29: Step 6 | B29: Enter the length of the TWA period (default is 21 days; longer periods are not accepted). MAF x twa is calculated automatically using a moving time window in accordance with paragraph 6.2.5.3 in EFSA 2023.
B30: MAF acute is automatically calculated
B31: Replace the default deposition factor, dehusking factor, PT, DT50 and RUD values by case-specific values, if considered appropriate. See tip texts and chapter 4 of the document for further guidance.
B32: If different PT values are to be used for acute and reproductive risk assessment, the table must be copied (Step 5).
A34: Step 7 | B34: Copying the table allows you to make similar calculations for other diets of a specific focal species, e.g. for other months. This is required whenever the product may be applied during an extended time period. Calculations must cover the whole period and all growth stages where applications may be performed.
B35: Please be aware that the calculations in the copied tables will change when the input for the main table above is changed (e.g. focal species, use rate).
A37: Step 8 | B37: Copying the whole spreadsheet allows you to repeat the calculations for another species or another use of the product.
A39: Step 9 | B39: The "Create print table" facility opens a dialogue which allows you to summarize the results in a format suitable for printing or copying into a report.
B40: Please tick the columns you want to include in a summary table. The table opens in a new spreadsheet immediately before the current sheet.
A42: Risk assessment for seed treatments:
A44: Step 0 | B44: Risk assessment for seed treatment compounds is performed using the "Seed Treatment new" spreadsheet.
A46: Step 1 | B46: Please enter basic data on substance, use and toxicity.
A48: Step 2 | B48: Select a relevant granivorous focal species from the summary tables in chapter 7 and the species accounts in chapter 6 of the document (please notice that wood mouse is the only relevant mammal species to consider).
B49: When a species is selected in the spreadsheet, a species-specific body weight is shown. Please notice that the calculation of daily intake (next step) refers to a specific body weight.
A51: Step 3 | B51: Enter the daily intake of treated seed for the species in question, based upon the species-specific information (paragraph "risk assessment") in chapter 6 of the document.
A53: Step 4 | B53: If deemed appropriate (and duly justified) the default dehusking factor and PT value (1) may be replaced by case-specific values.
A55: Step 5 | B55: Enter a compound-specific DT50 value (if available) for estimation of a TWA factor.
A57: Step 6 | B57: Copying the whole spreadsheet allows you to repeat the calculations for another species or another use of the product.
A59: Step 7 | B59: The "Create print table" facility opens a dialogue which allows you to summarize the results in a format suitable for printing or copying into a report.
B60: Please tick the columns you want to include in a summary table. The table opens in a new spreadsheet immediately before the current sheet.
A62: Risk assessment for seed treatments (systemic compounds) distributed to green parts of plant:
A64: Step 0 | B64: Risk assessment is performed in the same way as for sprayed compounds (i.e., using the "Birds" and "Mammals" spreadsheets) with the following modifications:
A66: Step 1 | B66: Application rate shall be set to zero and the number of applications to 1.
A68: Step 2 | B68: Depending on the intended use of the product, exposure may occur as "cereal shoots" or "leafy crops". The estimated concentration of a.s. (mg/kg) in the food type in question
B69: (estimated as seed treatment rate / 5 or as measured concentrations) shall be entered directly into the corresponding "C acute" field (to the right of the main table).
B70: "C repro" shall be calculated as C acute x MAFtwa.
B71: Deposition factor and MAF acute shall be set to 1. Default values for PT (1), DT50 (10 days) and length of TWA period (21 days) may be replaced if considered appropriate.
A73: Foraging area approach: determination of search area
A75: Step 0 | B75: Search area is determined using the "Foraging Area Approach" spreadsheet.
A77: Step 1 | B77: Please enter basic data on substance, use, toxicity, and drilling information.
A79: Step 2 | B79: Select a relevant granivorous focal species from the summary tables in chapter 7 and the species accounts in chapter 6 of the document (please notice that wood mouse is the only relevant mammal species to consider).
B80: When a species is selected in the spreadsheet, a species-specific body weight is shown.
A82: Step 3 | B82: Enter a compound-specific DT50 value (if available) for estimation of a TWA factor.
A84: Step 4 | B84: Copying the whole spreadsheet allows you to repeat the calculations for another species or another use of the product.
A86: Step 5 | B86: The "Create print table" facility opens a dialogue which allows you to summarize the results in a format suitable for printing or copying into a report.
B87: Please tick the columns you want to include in a summary table. The table opens in a new spreadsheet immediately before the current sheet.

Sheet Editing log
A1: Date | B1: Issue | C1: File name
A2: 2015-01-15 | B2: A calculation error was corrected, that appeared when the ‘copy table’ button was used | C2: Bird mammal scenario template v10-2.xlsm
A3: 2016-01-07 | B3: MAFm calculator and editing log included on separate sheets | C3: Bird mammal scenario template v10-3.xlsm
A4: 2016-04-26 | B4: Included PD for skylark and wood mouse as individual 'look up' sheets (from Appendix 2 & 4 of GD). Changes have no implications on TER calculations. | C4: Bird mammal scenario template v10-4.xlsm
A5: 2017-04-17 | B5: A bug affecting the copying of MAF90 values was fixed. 'MAF estimation' sheet amended to include estimation of MAF90. Editorial corrections to tip texts etc. | C5: Bird mammal scenario template v10-5.xlsm
A6: 2020-04-14 | B6: Focal species for forestry use/Christmas trees included; foraging area approach added; species dropdown split into species for seed treatment and other; print table button for seed treatment. Editorial corrections to tip texts and introduction | C6: Bird mammal scenario template v10-6_RIFCON_4.xlsm
A7: 2026-01-15 | B7: The calculator tool has been updated to be inline with Version 2.2 of the Northern Zone guidance document "Pesticide risk assessment for birds and mammals- Selection of relevant species and development of standard scenarios for higher tier risk assessment in the Northern Zone in accordance with Regulation EC 1107/2009 | C7: bird-mammal-scenario-template-v21.xlsm

Sheet Birds
A1: Birds | B1: Standard higher tier risk assessment for birds
AJ2: Y
B3: Responsible | C3: NN | D3: Date | E3: dd-mm-yyyy | G3: RED fields in bold shall always be filled in manually | AJ3: N
G4: Other RED fields are also to be filled in manually but may be left at their default values
B5: Active substance | C5: substance | G5: GREEN fields are filled in automatically but may be replaced
B6: Plant protection product | C6: product | G6: BLUE fields are filled in automatically and should NOT be replaced
B7: Use | C7: crop (group)
B8: Application rate | C8: 0.1 | D8: kg a.s./ha | G8: MAFrepro | H8: =((1-EXP(-C$9*H$10*C$10))/(1-EXP(-H$10*C$10))) -> 1.5 | J8: MAF repro and MAFvar are automatically calculated and are necessary for the MAFacute calculation
B9: No. of applications | C9: 2 | G9: MAFvar | H9: =((1-EXP(-2*C$9*H$10*C$10))/(1-EXP(-2*H$10*C$10))) -> 1.25
B10: Interval between applications | C10: 10 | D10: days | G10: k | H10: =(LN(2)/H$11) -> 0.06931471806
B11: Is the fTWA used in the RA? (See 6.1.4 of EFSA 2023) | C11: Y | G11: DT50 | H11: 10 | I11: d | J11: Please enter the DT50 of the active substance here
B13: Endpoints birds:
B14: LD50 acute | C14: 1000 | D14: mg/kg bw
B15: NOAEL reproductive | C15: 10 | D15: mg/kg bw/d
P16: Please copy the table for further months or periods
B18: Species (please select): | D18: 18 | E18: Body weight | F18: =OFFSET(species!$D$2,D18,0) -> 33 | G18: g | H18: DEE (kJ) | I18: =CalcDEE(D18,F18) -> 114.4235515
B20: Diet compos. measured as | D20: 1 | H20: Length of TWA period | I20: 21 | J20: days
A22: 0 | B22: Month or period:
B23: May
A25: 1 | B25: Diet composition: | D25: PD | E25: FIR | F25: Dehusk. | G25: Depos. | H25: PT | I25: DT50 | J25: MAF | K25: MAFtwa | L25: RUD | M25: RUD | N25: RUD | O25: DD | P25: DDD | R25: FE assimilated | S25: C acute | T25: C repro
A26: 2 | D26: ww or dw | E26: g ww | F26: factor | G26: factor | I26: days | J26: acute | L26: 90 perc. | M26: geomean | N26: variance | O26: acute | P26: repro | R26: kJ/g diet mix
A27: 3 | B27: monocot leaves | D27: 0.2 | E27: =CalcFIR($D$20,$I$18,R48,ROW(D27)) -> 3.015393989 | F27: -- | G27: 1 | H27: 1 | I27: 10 | J27: =IF($C$9=1,1,($H$8*M27+1.28*SQRT($H$9*N27))/L27) -> 1.098214064 | K27: =IF($C$11="Y",calctwa($C$9, $I$20,$I27,$C$10,1),$H$8) -> 0.8932516807 | L27: 117.8 | M27: 47.2 | N27: 1675 | O27: =$E27/$F$18*S27*$H27 -> 1.182122317 | P27: =$E27/$F$18*T27*$H27 -> 0.3852529434 | R27: =CalcFE($D$18,D$20,ROW(D27)) -> 0.6313472 | S27: =calcc($C$8,ROW(F27:M27),TRUE) -> 12.93696167 | T27: =calcc($C$8,ROW(F27:M27),FALSE) -> 4.216147933
A28: 4 | B28: maize foliage | D28: 0.2 | E28: =CalcFIR($D$20,$I$18,R48,ROW(D28)) -> 3.015393989 | F28: -- | G28: 1 | H28: =H27 -> 1 | I28: 10 | J28: =IF($C$9=1,1,($H$8*M28+1.28*SQRT($H$9*N28))/L28) -> 1.111113742 | K28: =IF($C$11="Y",calctwa($C$9, $I$20,$I28,$C$10,1),$H$8) -> 0.8932516807 | L28: 71.3 | M28: 29.7 | N28: 587 | O28: =$E28/$F$18*S28*$H28 -> 0.723899328 | P28: 0.2424155173 | R28: 0.6313472 | S28: =calcc($C$8,ROW(F28:M28),TRUE) -> 7.922240978 | T28: =calcc($C$8,ROW(F28:M28),FALSE) -> 2.652957492
A29: 5 | B29: dicot leaves | E29: =CalcFIR($D$20,$I$18,R48,ROW(D29)) -> 0 | F29: -- | G29: 1 | H29: =H27 -> 1 | I29: 10 | J29: 0.9363057448 | K29: 0.8932516807 | L29: 84.8 | M29: 21.9 | N29: 1058 | O29: 0 | P29: =$E29/$F$18*T29*$H29 -> 0 | R29: 0 | S29: 7.939872716 | T29: =calcc($C$8,ROW(F29:M29),FALSE) -> 1.956221181
A30: 6 | B30: crop seeds | E30: =CalcFIR($D$20,$I$18,R48,ROW(D30)) -> 0 | F30: 1 | G30: 1 | H30: 1 | I30: 10 | J30: 1.525434775 | K30: 0.8932516807 | L30: 87 | M30: 40.2 | N30: 2560.36 | O30: 0 | P30: =$E30/$F$18*T30*$H30 -> 0 | R30: 0 | S30: 13.27128254 | T30: =calcc($C$8,ROW(F30:M30),FALSE) -> 3.590871756
A31: 7 | B31: potato tubers or plant bulbs | D31: 0.6 | E31: =CalcFIR($D$20,$I$18,R48,ROW(D31)) -> 9.046181966 | F31: -- | G31: 1 | H31: 1 | I31: 10 | J31: 2.931083506 | K31: 1 | L31: 1 | M31: 1 | N31: 1 | O31: 0 | P31: =$E31/$F$18*T31*$H31 -> 0 | R31: 0.9578856 | S31: 0 | T31: 0
A32: 8 | B32: weed seeds | D32: 0.24 | E32: =CalcFIR($D$20,$I$18,R48,ROW(D32)) -> 3.618472786 | F32: 1 | G32: 1 | H32: =H27 -> 1 | I32: 10 | J32: 1.525434775 | K32: 0.8932516807 | L32: 87 | M32: 40.2 | N32: 2560.36 | O32: =$E32/$F$18*S32*$H32 -> 1.455205294 | P32: =$E32/$F$18*T32*$H32 -> 0.3937415676 | R32: 3.7539264 | S32: 13.27128254 | T32: 3.590871756
A33: 9 | B33: citrus fruit | E33: =CalcFIR($D$20,$I$18,R48,ROW(D33)) -> 0 | F33: -- | G33: 1 | H33: =H27 -> 1 | I33: 10 | J33: 0.9890142875 | K33: 0.8932516807 | L33: 17 | M33: 1.34 | N33: 107 | O33: 0 | P33: 0 | R33: =CalcFE($D$18,D$20,ROW(D33)) -> 0 | S33: 1.681324289 | T33: 0.1196957252
A34: 10 | B34: fruit from cucurbitaceous vegetable crops | E34: =CalcFIR($D$20,$I$18,R48,ROW(D34)) -> 0 | F34: -- | G34: 1 | H34: =H27 -> 1 | I34: 10 | J34: 2.421393322 | K34: 0.8932516807 | L34: 1.4 | M34: 0.47 | N34: 3.52 | O34: 0 | P34: 0 | R34: 0 | S34: 0.3389950651 | T34: 0.04198282899
A35: 11 | B35: fruit from solanaceous vegetable crops | E35: =CalcFIR($D$20,$I$18,R48,ROW(D35)) -> 0 | F35: -- | G35: 1 | H35: =H27 -> 1 | I35: 10 | J35: 1.130044517 | K35: 0.8932516807 | L35: 2.52 | M35: 0.73 | N35: 1.5 | O35: 0 | P35: 0 | R35: 0 | S35: 0.2847712184 | T35: 0.06520737269
A36: 12 | B36: pome fruit | E36: =CalcFIR($D$20,$I$18,R48,ROW(D36)) -> 0 | F36: -- | G36: 1 | H36: =H27 -> 1 | I36: 10 | J36: 1.075500434 | K36: 0.8932516807 | L36: 2.87 | M36: 0.97 | N36: 1.3 | O36: 0 | P36: 0 | R36: 0 | S36: 0.3086686244 | T36: 0.08664541302
A37: 13 | B37: stone fruit | E37: =CalcFIR($D$20,$I$18,R48,ROW(D37)) -> 0 | F37: -- | G37: 1 | H37: =H27 -> 1 | I37: 10 | J37: 1.199246509 | K37: 0.8932516807 | L37: 3.61 | M37: 1.22 | N37: 3.05 | O37: 0 | P37: 0 | R37: 0 | S37: 0.4329279896 | T37: 0.108976705
A38: 14 | B38: fruit from small fruit crops | E38: =CalcFIR($D$20,$I$18,R48,ROW(D38)) -> 0 | F38: -- | G38: 1 | H38: =H27 -> 1 | I38: 10 | J38: 1.379180487 | K38: 0.8932516807 | L38: 8.88 | M38: 3.3 | N38: 26 | O38: 0 | P38: 0 | R38: 0 | S38: 1.224712272 | T38: 0.2947730546
A39: 15 | B39: strawberries | E39: =CalcFIR($D$20,$I$18,R48,ROW(D39)) -> 0 | F39: -- | G39: 1 | H39: =H27 -> 1 | I39: 10 | J39: 1.5800693 | K39: 0.8932516807 | L39: 2.1 | M39: 0.95 | N39: 1.75 | O39: 0 | P39: 0 | R39: 0 | S39: 0.3318145531 | T39: 0.08485890966
A40: 16 | B40: figs | E40: =CalcFIR($D$20,$I$18,R48,ROW(D40)) -> 0 | F40: -- | G40: 1 | H40: =H28 -> 1 | I40: 10 | J40: 0.9890142875 | K40: 0.8932516807 | L40: 17 | M40: 1.34 | N40: 107 | O40: 0 | P40: 0 | R40: 0 | S40: 1.681324289 | T40: 0.1196957252
A41: 17 | B41: flower buds | E41: =CalcFIR($D$20,$I$18,R48,ROW(D41)) -> 0 | F41: -- | G41: 1 | H41: =H29 -> 1 | I41: 10 | J41: 1.379180487 | K41: 0.8932516807 | L41: 8.88 | M41: 3.3 | N41: 26 | O41: 0 | P41: 0 | R41: 0 | S41: 1.224712272 | T41: 0.2947730546
A42: 18 | B42: fruits from forests | E42: =CalcFIR($D$20,$I$18,R48,ROW(D42)) -> 0 | F42: -- | G42: 1 | H42: =H32 -> 1 | I42: 10 | J42: 1.379180487 | K42: 0.8932516807 | L42: 8.88 | M42: 3.3 | N42: 26 | O42: 0 | P42: 0 | R42: 0 | S42: 1.224712272 | T42: 0.2947730546
A43: 19 | B43: legume vegetables | E43: =CalcFIR($D$20,$I$18,R48,ROW(D43)) -> 0 | F43: -- | G43: 1 | H43: =H33 -> 1 | I43: 10 | J43: 1.130044517 | K43: 0.8932516807 | L43: 2.52 | M43: 0.73 | N43: 1.5 | O43: 0 | P43: 0 | R43: 0 | S43: 0.2847712184 | T43: 0.06520737269
A44: 20 | B44: tree nuts and seeds | E44: =CalcFIR($D$20,$I$18,R48,ROW(D44)) -> 0 | F44: -- | G44: 1 | H44: 1 | I44: 10 | J44: 1.199246509 | K44: 0.8932516807 | L44: 3.61 | M44: 1.22 | N44: 3.05 | O44: 0 | P44: 0 | R44: 0 | S44: 0.4329279896 | T44: 0.108976705
A45: 21 | B45: ground dwelling arthropods | D45: 0.3 | E45: =CalcFIR($D$20,$I$18,R48,ROW(D45)) -> 4.523090983 | F45: -- | G45: 1 | H45: 1 | I45: 10 | J45: 1.087093033 | K45: 0.8932516807 | L45: 20.2 | M45: 2.8 | N45: 154 | O45: 0.3009812668 | P45: 0.03428098225 | R45: 1.6147872 | S45: 2.195927926 | T45: 0.2501104706
A46: 22 | B46: foliar dwelling arthropods | E46: =CalcFIR($D$20,$I$18,R48,ROW(D46)) -> 0 | F46: -- | G46: 1 | H46: =H36 -> 1 | I46: 10 | J46: 1.233404868 | K46: 0.8932516807 | L46: 24.8 | M46: 8.4 | N46: 158 | O46: 0 | P46: 0 | R46: 0 | S46: 3.058844073 | T46: 0.7503314117
A47: 23 | B47: soil invertebrates | E47: =CalcFIR($D$20,$I$18,R48,ROW(D47)) -> 0 | F47: -- | G47: 1 | H47: =H37 -> 1 | I47: 10 | J47: 1 | K47: 1 | L47: 1 | M47: 1 | N47: 1 | O47: 0 | P47: 0 | R47: 0 | S47: 0 | T47: 0 | U47: please replace zeros with PECearthworm when necessary
B48: Total | D48: =SUM(D27:D47) -> 1.54 | E48: =SUM(E27:E47) -> 23.21853371 | O48: =SUM(O27:O47) -> 3.662208206 | P48: =SUM(P27:P47) -> 1.055691011 | R48: =SUM(R27:R47) -> 7.5892936
D49: check = 1,00
M50: TER | O50: =$C$14/ O48 -> 273.0592975 | P50: =$C$15/ P48 -> 9.472468649
M51: Trigger | O51: 10 | P51: 5
A55: 0
A58: 1
A59: 2
A60: 3
A61: 4
A62: 5
A63: 6
A64: 7
A65: 8
A66: 9
A67: 10
A68: 11
A69: 12
A70: 13
A71: 14
A72: 15
A73: 16
A74: 17
A75: 18
A76: 19
A77: 20
A78: 21
A79: 22
A80: 23
A85: 19
A86: 20
A87: 21
A88: 22
A89: 23

Sheet Mammals
A1: Mammals | B1: Standard higher tier risk assessment for mammals
AK2: Y
B3: Responsible | C3: NN | D3: Date | E3: dd-mm-yyyy | G3: RED fields in bold shall always be filled in manually | AK3: N
G4: Other RED fields are also to be filled in manually but may be left at their default values
B5: Active substance | C5: substance | G5: GREEN fields are filled in automatically but may be replaced
B6: Plant protection product | C6: product | G6: BLUE fields are filled in automatically and should NOT be replaced
B7: Use | C7: crop (group)
B8: Application rate | C8: 0.1 | D8: kg a.s./ha | G8: MAFrepro | H8: =((1-EXP(-C$9*H$10*C$10))/(1-EXP(-H$10*C$10))) -> 1.75 | K8: MAF repro and MAFvar are automatically calculated and are necessary for the MAFacute calculation
B9: No. of applications | C9: 3 | G9: MAFvar | H9: =((1-EXP(-2*C$9*H$10*C$10))/(1-EXP(-2*H$10*C$10))) -> 1.3125
B10: Interval between applications | C10: 10 | D10: days | G10: k | H10: =(LN(2)/H$11) -> 0.06931471806
B11: Is the fTWA used in the RA? (See 6.1.4 of EFSA 2023) | C11: Y | G11: DT50 | H11: 10 | I11: d | K11: Please enter the DT50 of the active substance here
B13: Endpoints mammals:
B14: LD50 acute | C14: 179 | D14: mg/kg bw
B15: NOAEL reproductive | C15: 10 | D15: mg/kg bw/d
P16: Please copy the table for further months or periods
B18: Species (please select): | C18: 2 | D18: =C18+27 -> 29 | E18: Body weight | F18: =OFFSET(species!$D$2,D18,0) -> 7.4 | G18: g | H18: DEE (kJ) | I18: =CalcDEE(D18,F18) -> 27.25842004
B20: Diet compos. measured as | D20: 1 | H20: Length of TWA period | I20: 21 | J20: days
A22: 0 | B22: Month or period:
B23: May
A25: 1 | B25: Diet composition: | D25: PD | E25: FIR | F25: Dehusk. | G25: Depos. | H25: PT | I25: DT50 | J25: MAF | K25: MAFtwa | L25: RUD | M25: RUD | N25: RUD | O25: DD | P25: DDD | R25: FE assimilated | S25: C acute | T25: C repro
A26: 2 | D26: ww or dw | E26: g ww | F26: factor | G26: factor | I26: days | J26: acute | L26: 90 perc. | M26: geomean | N26: variance | O26: acute | P26: repro | R26: kJ/g diet mix
A27: 3 | B27: monocot leaves | D27: 0.07 | E27: =CalcFIR($D$20,$I$18,R48,ROW(D27)) -> 0.1883126193 | F27: -- | G27: 1 | H27: 1 | I27: 10 | J27: =IF($C$9=1,1,($H$8*M27+1.28*SQRT($H$9*N27))/L27) -> 1.210662121 | K27: =IF($C$11="Y",calctwa($C$9, $I$20,$I27,$C$10,1),$H$8) -> 1.156626567 | L27: 117.8 | M27: 47.2 | N27: 1675 | O27: =$E27/$F$18*S27*$H27 -> 0.3629242177 | P27: 0.1389257873 | R27: =CalcFE($D$18,D$20,ROW(D27)) -> 0.13665344 | S27: =calcc($C$8,ROW(F27:M27),TRUE) -> 14.26159979 | T27: =calcc($C$8,ROW(F27:M27),FALSE) -> 5.459277397
A28: 4 | B28: maize foliage | E28: =CalcFIR($D$20,$I$18,R48,ROW(D28)) -> 0 | F28: -- | G28: 1 | H28: =H27 -> 1 | I28: 10 | J28: =IF($C$9=1,1,($H$8*M28+1.28*SQRT($H$9*N28))/L28) -> 1.227260135 | K28: =IF($C$11="Y",calctwa($C$9, $I$20,$I28,$C$10,1),$H$8) -> 1.156626567 | L28: 71.3 | M28: 29.7 | N28: 587 | O28: 0 | P28: 0 | R28: 0 | S28: =calcc($C$8,ROW(F28:M28),TRUE) -> 8.75036476 | T28: =calcc($C$8,ROW(F28:M28),FALSE) -> 3.435180905
A29: 5 | B29: dicot leaves | D29: 0.03 | E29: =CalcFIR($D$20,$I$18,R48,ROW(D29)) -> 0.08070540826 | F29: -- | G29: 1 | H29: =H27 -> 1 | I29: 10 | J29: 1.014425136 | K29: =IF($C$11="Y",calctwa($C$9, $I$20,$I29,$C$10,1),$H$8) -> 1.156626567 | L29: 84.8 | M29: 21.9 | N29: 1058 | O29: 0.09381813021 | P29: 0.02762537598 | R29: 0.04829496 | S29: =calcc($C$8,ROW(F29:M29),TRUE) -> 8.602325154 | T29: =calcc($C$8,ROW(F29:M29),FALSE) -> 2.533012182
A30: 6 | B30: crop seeds | D30: 0.32 | E30: =CalcFIR($D$20,$I$18,R48,ROW(D30)) -> 0.8608576881 | F30: 1 | G30: 1 | H30: =H27 -> 1 | I30: 10 | J30: 1.661506502 | K30: =IF($C$11="Y",calctwa($C$9, $I$20,$I30,$C$10,1),$H$8) -> 1.156626567 | L30: 87 | M30: 40.2 | N30: 2560.36 | O30: =$E30/$F$18*S30*$H30 -> 1.681593192 | P30: =$E30/$F$18*T30*$H30 -> 0.5409023389 | R30: 4.21886976 | S30: =calcc($C$8,ROW(F30:M30),TRUE) -> 14.45510657 | T30: =calcc($C$8,ROW(F30:M30),FALSE) -> 4.6496388
A31: 7 | B31: potato tubers or plant bulbs | E31: =CalcFIR($D$20,$I$18,R48,ROW(D31)) -> 0 | F31: -- | G31: 1 | H31: =H28 -> 1 | I31: 10 | J31: 3.216424222 | K31: 1 | L31: 1 | M31: 1 | N31: 1 | O31: 0 | P31: 0 | R31: 0 | S31: 0 | T31: 0
A32: 8 | B32: weed seeds | D32: 0.21 | E32: =CalcFIR($D$20,$I$18,R48,ROW(D32)) -> 0.5649378578 | F32: 1 | G32: 1 | H32: =H27 -> 1 | I32: 10 | J32: 1.661506502 | K32: =IF($C$11="Y",calctwa($C$9, $I$20,$I32,$C$10,1),$H$8) -> 1.156626567 | L32: 87 | M32: 40.2 | N32: 2560.36 | O32: =$E32/$F$18*S32*$H32 -> 1.103545532 | P32: 0.3549671599 | R32: 3.44891988 | S32: =calcc($C$8,ROW(F32:M32),TRUE) -> 14.45510657 | T32: =calcc($C$8,ROW(F32:M32),FALSE) -> 4.6496388
A33: 9 | B33: citrus fruit | E33: =CalcFIR($D$20,$I$18,R48,ROW(D33)) -> 0 | F33: -- | G33: 1 | H33: =H27 -> 1 | I33: 10 | J33: 1.030224124 | K33: =IF($C$11="Y",calctwa($C$9, $I$20,$I33,$C$10,1),$H$8) -> 1.156626567 | L33: 17 | M33: 1.34 | N33: 107 | O33: 0 | P33: 0 | R33: 0 | S33: 1.75138101 | T33: 0.15498796
A34: 10 | B34: fruit from cucurbitaceous vegetable crops | E34: =CalcFIR($D$20,$I$18,R48,ROW(D34)) -> 0 | F34: -- | G34: 1 | H34: =H27 -> 1 | I34: 10 | J34: 2.552682652 | K34: =IF($C$11="Y",calctwa($C$9, $I$20,$I34,$C$10,1),$H$8) -> 1.156626567 | L34: 1.4 | M34: 0.47 | N34: 3.52 | O34: 0 | P34: =$E34/$F$18*T34*$H34 -> 0 | R34: 0 | S34: 0.3573755713 | T34: 0.05436144866
A35: 11 | B35: fruit from solanaceous vegetable crops | E35: =CalcFIR($D$20,$I$18,R48,ROW(D35)) -> 0 | F35: -- | G35: 1 | H35: =H27 -> 1 | I35: 10 | J35: 1.21964109 | K35: =IF($C$11="Y",calctwa($C$9, $I$20,$I35,$C$10,1),$H$8) -> 1.156626567 | L35: 2.52 | M35: 0.73 | N35: 1.5 | O35: 0 | P35: 0 | R35: 0 | S35: 0.3073495546 | T35: 0.0844337394
A36: 12 | B36: pome fruit | E36: =CalcFIR($D$20,$I$18,R48,ROW(D36)) -> 0 | F36: -- | G36: 1 | H36: =H27 -> 1 | I36: 10 | J36: 1.174035143 | K36: =IF($C$11="Y",calctwa($C$9, $I$20,$I36,$C$10,1),$H$8) -> 1.156626567 | L36: 2.87 | M36: 0.97 | N36: 1.3 | O36: 0 | P36: 0 | R36: 0 | S36: 0.3369480861 | T36: 0.112192777
A37: 13 | B37: stone fruit | E37: =CalcFIR($D$20,$I$18,R48,ROW(D37)) -> 0 | F37: -- | G37: 1 | H37: =H28 -> 1 | I37: 10 | J37: 1.300830971 | K37: =IF($C$11="Y",calctwa($C$9, $I$20,$I37,$C$10,1),$H$8) -> 1.156626567 | L37: 3.61 | M37: 1.22 | N37: 3.05 | O37: 0 | P37: 0 | R37: 0 | S37: 0.4695999805 | T37: 0.1411084412
A38: 14 | B38: fruit from small fruit crops | E38: =CalcFIR($D$20,$I$18,R48,ROW(D38)) -> 0 | F38: -- | G38: 1 | H38: =H29 -> 1 | I38: 10 | J38: 1.492379023 | K38: =IF($C$11="Y",calctwa($C$9, $I$20,$I38,$C$10,1),$H$8) -> 1.156626567 | L38: 8.88 | M38: 3.3 | N38: 26 | O38: 0 | P38: 0 | R38: 0 | S38: 1.325232573 | T38: 0.3816867672
A39: 15 | B39: strawberries | E39: =CalcFIR($D$20,$I$18,R48,ROW(D39)) -> 0 | F39: -- | G39: 1 | H39: =H30 -> 1 | I39: 10 | J39: 1.715427097 | K39: =IF($C$11="Y",calctwa($C$9, $I$20,$I39,$C$10,1),$H$8) -> 1.156626567 | L39: 2.1 | M39: 0.95 | N39: 1.75 | O39: 0 | P39: 0 | R39: 0 | S39: 0.3602396904 | T39: 0.1098795239
A40: 16 | B40: figs | E40: =CalcFIR($D$20,$I$18,R48,ROW(D40)) -> 0 | F40: -- | G40: 1 | H40: =H32 -> 1 | I40: 10 | J40: 1.030224124 | K40: =IF($C$11="Y",calctwa($C$9, $I$20,$I40,$C$10,1),$H$8) -> 1.156626567 | L40: 17 | M40: 1.34 | N40: 107 | O40: 0 | P40: 0 | R40: 0 | S40: 1.75138101 | T40: 0.15498796
A41: 17 | B41: flower buds | E41: =CalcFIR($D$20,$I$18,R48,ROW(D41)) -> 0 | F41: -- | G41: 1 | H41: 1 | I41: 10 | J41: 1.492379023 | K41: =IF($C$11="Y",calctwa($C$9, $I$20,$I41,$C$10,1),$H$8) -> 1.156626567 | L41: 8.88 | M41: 3.3 | N41: 26 | O41: 0 | P41: 0 | R41: 0 | S41: 1.325232573 | T41: 0.3816867672
A42: 18 | B42: fruits from forests | E42: =CalcFIR($D$20,$I$18,R48,ROW(D42)) -> 0 | F42: -- | G42: 1 | H42: 1 | I42: 10 | J42: 1.492379023 | K42: =IF($C$11="Y",calctwa($C$9, $I$20,$I42,$C$10,1),$H$8) -> 1.156626567 | L42: 8.88 | M42: 3.3 | N42: 26 | O42: 0 | P42: 0 | R42: 0 | S42: 1.325232573 | T42: 0.3816867672
A43: 19 | B43: legume vegetables | E43: =CalcFIR($D$20,$I$18,R48,ROW(D43)) -> 0 | F43: -- | G43: 1 | H43: 1 | I43: 10 | J43: 1.21964109 | K43: =IF($C$11="Y",calctwa($C$9, $I$20,$I43,$C$10,1),$H$8) -> 1.156626567 | L43: 2.52 | M43: 0.73 | N43: 1.5 | O43: 0 | P43: 0 | R43: 0 | S43: 0.3073495546 | T43: 0.0844337394
A44: 20 | B44: tree nuts and seeds | E44: =CalcFIR($D$20,$I$18,R48,ROW(D44)) -> 0 | F44: -- | G44: 1 | H44: =H27 -> 1 | I44: 10 | J44: 1.300830971 | K44: =IF($C$11="Y",calctwa($C$9, $I$20,$I44,$C$10,1),$H$8) -> 1.156626567 | L44: 3.61 | M44: 1.22 | N44: 3.05 | O44: 0 | P44: 0 | R44: 0 | S44: 0.4695999805 | T44: 0.1411084412
A45: 21 | B45: ground dwelling arthropods | D45: 0.37 | E45: =CalcFIR($D$20,$I$18,R48,ROW(D45)) -> 0.9953667019 | F45: -- | G45: 1 | H45: =H27 -> 1 | I45: 10 | J45: 1.143457724 | K45: =IF($C$11="Y",calctwa($C$9, $I$20,$I45,$C$10,1),$H$8) -> 1.156626567 | L45: 20.2 | M45: 2.8 | N45: 154 | O45: 0.3106868489 | P45: 0.04356147568 | R45: 2.27982456 | S45: 2.309784603 | T45: 0.3238554388
A46: 22 | B46: foliar dwelling arthropods | E46: =CalcFIR($D$20,$I$18,R48,ROW(D46)) -> 0 | F46: -- | G46: 1 | H46: =H27 -> 1 | I46: 10 | J46: 1.335994623 | K46: =IF($C$11="Y",calctwa($C$9, $I$20,$I46,$C$10,1),$H$8) -> 1.156626567 | L46: 24.8 | M46: 8.4 | N46: 158 | O46: 0 | P46: 0 | R46: 0 | S46: =calcc($C$8,ROW(F46:M46),TRUE) -> 3.313266665 | T46: =calcc($C$8,ROW(F46:M46),FALSE) -> 0.9715663164
A47: 23 | B47: soil invertebrates | E47: =CalcFIR($D$20,$I$18,R48,ROW(D47)) -> 0 | F47: -- | G47: 1 | H47: =H28 -> 1 | I47: 10 | J47: 1 | K47: 1 | L47: 1 | M47: 1 | N47: 1 | O47: 0 | P47: 0 | R47: 0 | S47: 0 | T47: 0 | U47: please replace zeros with PECearthworm when necessary
B48: Total | D48: =SUM(D27:D47) -> 1 | E48: =SUM(E27:E47) -> 2.690180275 | O48: =SUM(O27:O47) -> 3.552567921 | P48: =SUM(P27:P47) -> 1.105982138 | R48: =SUM(R27:R47) -> 10.1325626
D49: check = 1,00
M50: TER | O50: =$C$14/ O48 -> 50.38608804 | P50: =$C$15/ P48 -> 9.041737347
M51: Trigger | O51: 10 | P51: 5

Sheet Seed Treatment new
A1: Birds | B1: Standard higher tier risk assessment for birds and mammals
AE2: Y
B3: Responsible | C3: NN | D3: Date | E3: dd-mm-yyyy | G3: RED fields in bold shall always be filled in manually | AE3: N
G4: Other RED fields are also to be filled in manually but may be left at their default values
B5: Active substance | C5: substance | G5: GREEN fields are filled in automatically but may be replaced
B6: Plant protection product | C6: product | G6: BLUE fields are filled in automatically and should NOT be replaced
B7: Use | C7: crop (group)
B8: Seed loading | C8: 80 | D8: mg a.s./kg seeds
B10: Endpoints birds:
B11: LD50 acute | C11: 1000 | D11: mg/kg bw
B12: NOAEL reproductive | C12: 10 | D12: mg/kg bw/d
B14: Endpoints mammals:
B15: LD50 acute | C15: 2000 | D15: mg/kg bw
B16: NOAEL reproductive | C16: 10 | D16: mg/kg bw/d | K16: Please copy the table for further months or periods
B18: Species (please select): | D18: 32 | E18: Body weight | F18: =OFFSET('species Seed Treatment 2'!$D$2,D18,0) -> 75000 | G18: DEE (kJ) | H18: =CalcDEE(D18,F18) -> 19937.41291
B20: Diet compos. measured as | D20: 1 | G20: Length of TWA period | H20: 21
A22: 0 | B22: Month or period:
B23: May
A25: 1 | B25: Diet composition: | D25: PD | E25: FIR | F25: Dehusk. | G25: PT | H25: DT50 days | I25: fTWA | J25: DD | K25: DDD | M25: FE assimilated
A26: 2 | D26: ww or dw | E26: g ww | F26: factor | J26: acute | K26: repro | M26: kJ/g diet mix
A27: 3 | B27: monocot leaves | E27: =CalcFIR($D$20,$H$18,M48,ROW(D27)) -> 0 | F27: -- | G27: -- | H27: -- | I27: -- | J27: =0 -> 0 | K27: =0 -> 0 | M27: =CalcFE($D$18,D$20,ROW(D27)) -> 0
A28: 4 | B28: maize foliage | E28: =CalcFIR($D$20,$H$18,M48,ROW(D28)) -> 0 | F28: -- | G28: =G27 -> -- | H28: -- | I28: -- | J28: =0 -> 0 | K28: =0 -> 0 | M28: 0
A29: 5 | B29: dicot leaves | E29: =CalcFIR($D$20,$H$18,M48,ROW(D29)) -> 0 | F29: -- | G29: =G27 -> -- | H29: -- | I29: -- | J29: =0 -> 0 | K29: =0 -> 0 | M29: 0
A30: 6 | B30: crop seeds | E30: =IF(OR($D$18=1,$D$18=2),225,CalcFIR($D$20,$H$18,M48,ROW(D30))) -> 0 | F30: 1 | G30: 1 | H30: 99999 | I30: =(1-EXP(-((LN(2)/H30)*$H$20)))/((LN(2)/H30)*$H$20) -> 0.9999272223 | J30: =($C$8*E30*F30*G30)/$F$18 -> 0 | K30: =J30*I30 -> 0 | M30: 0
A31: 7 | B31: potato tubers or plant bulbs | D31: 0.6 | E31: =IF(OR($D$18=1,$D$18=2),225,CalcFIR($D$20,$H$18,M48,ROW(D31))) -> 4526.163647 | F31: -- | G31: 1 | H31: 99999 | I31: 0.9999272223 | J31: =($C$8*E31*G31)/$F$18 -> 4.82790789 | K31: =J31*I31 -> 4.827556526 | M31: 1.0579632
A32: 8 | B32: weed seeds | E32: =CalcFIR($D$20,$H$18,M48,ROW(D32)) -> 0 | F32: -- | G32: =G27 -> -- | H32: -- | I32: =I27 -> -- | J32: =0 -> 0 | K32: =0 -> 0 | M32: 0
A33: 9 | B33: citrus fruit | E33: =CalcFIR($D$20,$H$18,M48,ROW(D33)) -> 0 | F33: -- | G33: =G27 -> -- | H33: -- | I33: -- | J33: =0 -> 0 | K33: =0 -> 0 | M33: 0
A34: 10 | B34: fruit from cucurbitaceous vegetable crops | E34: =CalcFIR($D$20,$H$18,M48,ROW(D34)) -> 0 | F34: -- | G34: =G27 -> -- | H34: -- | I34: -- | J34: =0 -> 0 | K34: =0 -> 0 | M34: 0
A35: 11 | B35: fruit from solanaceous vegetable crops | E35: =CalcFIR($D$20,$H$18,M48,ROW(D35)) -> 0 | F35: -- | G35: =G27 -> -- | H35: -- | I35: -- | J35: =0 -> 0 | K35: =0 -> 0 | M35: 0
A36: 12 | B36: pome fruit | E36: =CalcFIR($D$20,$H$18,M48,ROW(D36)) -> 0 | F36: -- | G36: =G27 -> -- | H36: -- | I36: -- | J36: =0 -> 0 | K36: =0 -> 0 | M36: 0
A37: 13 | B37: stone fruit | E37: =CalcFIR($D$20,$H$18,M48,ROW(D37)) -> 0 | F37: -- | G37: =G27 -> -- | H37: -- | I37: -- | J37: =0 -> 0 | K37: =0 -> 0 | M37: 0
A38: 14 | B38: fruit from small fruit crops | E38: =CalcFIR($D$20,$H$18,M48,ROW(D38)) -> 0 | F38: -- | G38: =G27 -> -- | H38: -- | I38: -- | J38: =0 -> 0 | K38: =0 -> 0 | M38: 0
A39: 15 | B39: strawberries | E39: =CalcFIR($D$20,$H$18,M48,ROW(D39)) -> 0 | F39: -- | G39: =G27 -> -- | H39: -- | I39: -- | J39: =0 -> 0 | K39: =0 -> 0 | M39: 0
A40: 16 | B40: figs | E40: =CalcFIR($D$20,$H$18,M48,ROW(D40)) -> 0 | F40: -- | G40: =G28 -> -- | H40: -- | I40: -- | J40: =0 -> 0 | K40: =0 -> 0 | M40: 0
A41: 17 | B41: flower buds | E41: =CalcFIR($D$20,$H$18,M48,ROW(D41)) -> 0 | F41: -- | G41: =G29 -> -- | H41: -- | I41: -- | J41: =0 -> 0 | K41: =0 -> 0 | M41: 0
A42: 18 | B42: fruits from forests | D42: 0.2 | E42: =CalcFIR($D$20,$H$18,M48,ROW(D42)) -> 1508.721216 | F42: -- | G42: =G32 -> -- | H42: -- | I42: -- | J42: =0 -> 0 | K42: =0 -> 0 | M42: 0.3526544
A43: 19 | B43: legume vegetables | E43: =CalcFIR($D$20,$H$18,M48,ROW(D43)) -> 0 | F43: -- | G43: -- | H43: -- | I43: -- | J43: =0 -> 0 | K43: =0 -> 0 | M43: 0
A44: 20 | B44: tree nuts and seeds | E44: =CalcFIR($D$20,$H$18,M48,ROW(D44)) -> 0 | F44: -- | G44: -- | H44: -- | I44: -- | J44: =0 -> 0 | K44: =0 -> 0 | M44: 0
A45: 21 | B45: ground dwelling arthropods | D45: 0.2 | E45: =CalcFIR($D$20,$H$18,M48,ROW(D45)) -> 1508.721216 | F45: -- | G45: -- | H45: -- | I45: -- | J45: =0 -> 0 | K45: =0 -> 0 | M45: 1.2323376
A46: 22 | B46: foliar dwelling arthropods | E46: =CalcFIR($D$20,$H$18,M48,ROW(D46)) -> 0 | F46: -- | G46: -- | H46: -- | I46: -- | J46: =0 -> 0 | K46: =0 -> 0 | M46: 0
A47: 23 | B47: soil invertebrates | E47: =CalcFIR($D$20,$H$18,M48,ROW(D47)) -> 0 | F47: -- | G47: -- | H47: -- | I47: -- | J47: =0 -> 0 | K47: =0 -> 0 | M47: 0
B48: Total | D48: =SUM(D27:D47) -> 1 | E48: =SUM(E27:E47) -> 7543.606078 | J48: =SUM(J27:J47) -> 4.82790789 | K48: =SUM(K27:K47) -> 4.827556526 | M48: =SUM(M27:M47) -> 2.6429552
B49: TER birds | J49: =IF($D$18>=31,"not relevant",$C$11/ J48) -> not relevant | K49: =IF($D$18>=31,"not relevant",$C$12/K48) -> not relevant
B50: TER mammals | J50: =IF($D$18<31,"not relevant",$C$15/J48) -> 414.2581105 | K50: =IF($D$18<31,"not relevant",$C$16/K48) -> 2.071441307
B51: Triggers | J51: 10 | K51: 5
A58: 0
A61: 1
A62: 2
A63: 3
A64: 4
A65: 5
A66: 6
A67: 7
A68: 8
A69: 9
A70: 10
A71: 11
A72: 12
A73: 13
A74: 14
A75: 15
A76: 16
A77: 17
A78: 18
A79: 19
A80: 20
A81: 21
A82: 22
A83: 23

Sheet Foraging Area Approach
A1: Foraging area approach for seed treatments
A3: Responsible | B3: NN | D3: Date | G3: dd-mm-yyyy | J3: RED fields in bold shall always be filled in manually
J4: Other RED fields are also to be filled in manually but may be left at their default values
A5: Active substance | B5: substance | J5: GREEN fields are filled in automatically but may be replaced
A6: Plant protection product | B6: product | J6: BLUE fields are filled in automatically and should NOT be replaced
A7: Use | B7: crop (group)
A8: Seed tmt. (mg a.s./kg seed) (NAR) | B8: 750
A9: Thousand grain weight (g): 90%ile | B9: 30
A10: Thousand grain weight (g): mean | B10: 27
A11: Sowing density (seeds/m2) | B11: 20
A12: Seeds on surface (%) | B12: 1
A15: Endpoints birds:
A16: LD50 acute | B16: 500 | C16: mg/kg bw
A17: NOAEL reproductive | B17: 15 | C17: mg/kg bw/d
A19: Species (please select): | C19: 5 | G19: Body weight (g) | H19: =OFFSET('species Seed Treatment 2'!$D$2, C19,0) -> 490 | K19: Length of TWA period | L19: 21 | M19: days
B21: DT50 | C21: Ftwa | D21: Dehusking factor | E21: No. of seeds to reach endpoint | G21: Search area (m2)
B22: days | E22: acute | F22: repro | G22: acute | H22: repro
A24: Granivorous bird | B24: 9999 | C24: =(1-EXP(-((LN(2)/B24)*$L$19)))/((LN(2)/B24)*$L$19) -> 0.9992724757 | D24: 1 | E24: =((($B$16/10)*$H$19)/($B$8*($B$9/1000)*$D$24)) -> 1088.888889 | F24: =((($B$17/5)*$H$19)/($B$8*($B$10/1000)*$C$24*$D$24)) -> 72.64544391 | G24: =$E$24/($B$11*($B$12/100)) -> 5444.444444 | H24: =$F$24/($B$11*($B$12/100)) -> 363.2272196
A25: including relevant safety factor (10 for acute; 5 for repro)
A30: Endpoints mammals:
A31: LD50 acute | B31: 300 | C31: mg/kg bw
A32: NOAEL reproductive | B32: 12 | C32: mg/kg bw/d
A34: Species | C34: 31 | G34: Body weight (g) | H34: =OFFSET('species Seed Treatment 2'!$D$2,C34,0) -> 17.6 | K34: Length of TWA period | L34: 21 | M34: days
B36: DT50 | C36: Ftwa | D36: Dehusking factor | E36: No. of seeds to reach endpoint | G36: Search area (m2)
B37: days | E37: acute | F37: repro | G37: acute | H37: repro
A39: Granivorous mammal | B39: 9999 | C39: =(1-EXP(-((LN(2)/B39)*$L$34)))/((LN(2)/B39)*$L$34) -> 0.9992724757 | D39: 1 | E39: =((($B$31/10)*$H$34)/($B$8*($B$9/1000)*$D$39)) -> 23.46666667 | F39: =((($B$32/5)*$H$34)/($B$8*($B$10/1000)*$C$39*$D$39)) -> 2.087444592 | G39: =$E$39/($B$11*($B$12/100)) -> 117.3333333 | H39: =$F$39/($B$11*($B$12/100)) -> 10.43722296
A40: including relevant safety factor (10 for acute; 5 for repro)

Sheet species (hidden)
A1: AE_gruppe | B1: English name | C1: Dansk navn | D1: BW (g) | E1: log a | F1: b
A3: 3 | B3: Bean goose | C3: Sædgås | D3: 1622 | E3: 0.839 | F3: 0.669
A4: 3 | B4: Pink-footed goose | C4: Kortnæbbet gås | D4: 1622 | E4: 0.839 | F4: 0.669
A5: 5 | B5: Grey partridge | C5: Agerhøne | D5: 393 | E5: 0.839 | F5: 0.669
A6: 4 | B6: Stock dove | C6: Huldue | D6: 280 | E6: 0.839 | F6: 0.669
A7: 4 | B7: Woodpigeon | C7: Ringdue | D7: 490 | E7: 0.839 | F7: 0.669
A8: 5 | B8: Common crane | D8: 5000 | E8: 0.839 | F8: 0.669
A9: 2 | B9: Blue tit | C9: Blåmejse | D9: 10.1 | E9: 1.032 | F9: 0.676
A10: 2 | B10: Bullfinch | C10: Dompap | D10: 27 | E10: 1.032 | F10: 0.676
A11: 2 | B11: Chaffinch | C11: Bogfinke | D11: 20.9 | E11: 1.032 | F11: 0.676
A12: 2 | B12: Common redstart | C12: Rødstjert | D12: 14.6 | E12: 1.032 | F12: 0.676
A13: 2 | B13: Common treecreeper | C13: Træløber | D13: 9.5 | E13: 1.032 | F13: 0.676
A14: 2 | B14: Goldcrest | C14: Fuglekonge | D14: 5.5 | E14: 1.032 | F14: 0.676
A15: 2 | B15: Hawfinch | C15: Kernebider | D15: 54 | E15: 1.032 | F15: 0.676
A16: 2 | B16: Linnet | C16: Tornirisk | D16: 18.9 | E16: 1.032 | F16: 0.676
A17: 2 | B17: Ortolan bunting | C17: Hortulan | D17: 19.9 | E17: 1.032 | F17: 0.676
A18: 2 | B18: Robin | C18: Rødhals | D18: 17.7 | E18: 1.032 | F18: 0.676
A19: 2 | B19: Siskin | C19: Grønsisken | D19: 13 | E19: 1.032 | F19: 0.676
A20: 2 | B20: Skylark | C20: Sanglærke | D20: 33 | E20: 1.032 | F20: 0.676
A21: 2 | B21: Starling | C21: Stær | D21: 83 | E21: 1.032 | F21: 0.676
A22: 2 | B22: Whinchat | C22: Bynkefugl | D22: 16.6 | E22: 1.032 | F22: 0.676
A23: 2 | B23: White wagtail | C23: Hvid vipstjert | D23: 21 | E23: 1.032 | F23: 0.676
A24: 2 | B24: Whitethroat | C24: Tornsanger | D24: 15.1 | E24: 1.032 | F24: 0.676
A25: 2 | B25: Willow warbler | C25: Løvsanger | D25: 8.7 | E25: 1.032 | F25: 0.676
A26: 2 | B26: Wren | C26: Gærdsmutte | D26: 8.9 | E26: 1.032 | F26: 0.676
A27: 2 | B27: Yellowhammer | D27: 29.7 | E27: 1.032 | F27: 0.676
A28: 2 | B28: Yellow wagtail | C28: Gul vipstjert | D28: 16.6 | E28: 1.032 | F28: 0.676
A29: 2 | B29: Bullfinch | D29: 21.8 | E29: 1.032 | F29: 0.676
A30: 1 | B30: Brown hare | C30: Hare | D30: 3429 | E30: 0.814 | F30: 0.715
A31: 1 | B31: Common shrew | C31: Almindelig spidsmus | D31: 7.4 | E31: 0.814 | F31: 0.715
A32: 1 | B32: Field vole | C32: Almindelig markmus | D32: 26.7 | E32: 0.814 | F32: 0.715
A33: 1 | B33: Wood mouse | C33: Skovmus | D33: 17.6 | E33: 0.814 | F33: 0.715
A34: 1 | B34: Wild boar | D34: 75000 | E34: 0.814 | F34: 0.715
A35: 1 | B35: Hazel dormouse | D35: 14.4 | E35: 0.814 | F35: 0.715
A37: Please do not make any changes to this sheet

Sheet species Seed Treatment 2 (hidden)
A1: AE_gruppe | B1: English name | C1: Dansk navn | D1: BW (g) | E1: log a | F1: b
A3: 3 | B3: Bean goose | C3: Sædgås | D3: 1622 | E3: 0.839 | F3: 0.669
A4: 3 | B4: Pink-footed goose | C4: Kortnæbbet gås | D4: 1622 | E4: 0.839 | F4: 0.669
A7: 4 | B7: Woodpigeon | C7: Ringdue | D7: 490 | E7: 0.839 | F7: 0.669
A8: 4 | B8: Common crane | D8: 5000 | E8: 0.839 | F8: 0.669
A16: 2 | B16: Linnet | C16: Tornirisk | D16: 18.9 | E16: 1.032 | F16: 0.676
A20: 2 | B20: Skylark | C20: Sanglærke | D20: 33 | E20: 1.032 | F20: 0.676
A33: 1 | B33: Wood mouse | C33: Skovmus | D33: 17.6 | E33: 0.814 | F33: 0.715
A34: 1 | B34: Wild boar | D34: 75000 | E34: 0.814 | F34: 0.715
A37: Please do not make any changes to this sheet

Sheet diets (hidden)
A1: English name | B1: Dansk navn | C1: Mammal | D1: Passerine | E1: Duck & Geese | F1: Pigeon | G1: Fowl | H1: Crane | I1: FE | J1: MC%
B2: index | C2: 1 | D2: 2 | E2: 3 | F2: 4 | G2: 5 | H2: 6
A3: monocot leaves | C3: 0.47 | D3: 0.76 | E3: 0.41 | F3: 0.53 | G3: 0.42 | I3: 17.6 | J3: 76.4
A4: maize foliage | C4: 0.47 | D4: 0.76 | E4: 0.41 | F4: 0.53 | G4: 0.42 | I4: 17.6 | J4: 76.4
A5: dicot leaves | C5: 0.76 | D5: 0.76 | E5: 0.41 | F5: 0.53 | G5: 0.42 | H5: 0.59 | I5: 17.8 | J5: 88.1
A6: crop seeds | C6: 0.84 | D6: 0.8 | E6: 0.83 | F6: 0.76 | G6: 0.65 | I6: 18.4 | J6: 14.7
A7: potato tubers or plant bulbs | C7: 0.74 | D7: 0.67 | G7: 0.57 | H7: 0.45 | I7: 14.8 | J7: 83.9
A8: weed seeds | C8: 0.84 | D8: 0.8 | E8: 0.83 | F8: 0.76 | G8: 0.65 | I8: 21.7 | J8: 9.9
A9: citrus fruit | C9: 0.74 | D9: 0.67 | G9: 0.57 | I9: 14.8 | J9: 83.9
A10: fruit from cucurbitaceous vegetable crops | C10: 0.74 | D10: 0.67 | G10: 0.57 | I10: 14.8 | J10: 83.9
A11: fruit from solanaceous vegetable crops | C11: 0.74 | D11: 0.67 | G11: 0.57 | I11: 14.8 | J11: 83.9
A12: pome fruit | C12: 0.74 | D12: 0.67 | G12: 0.57 | I12: 14.8 | J12: 83.9
A13: stone fruit | C13: 0.74 | D13: 0.67 | G13: 0.57 | I13: 14.8 | J13: 83.9
A14: fruit from small fruit crops | C14: 0.74 | D14: 0.67 | G14: 0.57 | I14: 14.8 | J14: 83.9
A15: strawberries | C15: 0.74 | D15: 0.67 | G15: 0.57 | I15: 14.8 | J15: 83.9
A16: figs | C16: 0.74 | D16: 0.67 | G16: 0.57 | I16: 14.8 | J16: 83.9
A17: flower buds | C17: 0.74 | D17: 0.67 | G17: 0 | I17: 19.4 | J17: 38.2
A18: fruits from forests | C18: 0.74 | D18: 0.67 | G18: 0.57 | I18: 14.8 | J18: 83.9
A19: legume vegetables | C19: 0.74 | D19: 0.67 | G19: 0.57 | I19: 14.8 | J19: 83.9
A20: tree nuts and seeds | C20: 0.84 | D20: 0.8 | E20: 0.83 | G20: 0.65 | I20: 22.9 | J20: 15
A21: ground dwelling arthropods | C21: 0.87 | D21: 0.76 | E21: 0.87 | G21: 0.7 | I21: 22.7 | J21: 68.8
A22: foliar dwelling arthropods | C22: 0.87 | D22: 0.76 | E22: 0.87 | G22: 0.7 | I22: 22.7 | J22: 68.8
A23: soil invertebrates | C23: 0.87 | D23: 0.76 | E23: 0.87 | G23: 0.7 | I23: 19.4 | J23: 84.3
A25: Fresh (wet) weight | B25: Vådvægt
A26: Dry weight | B26: Tørvægt
A30: Standard (21 days)
A31: Application interval
A34: Please do not make any changes to this sheet

Sheet PD Wood mouse
A1: Wood mouse PD - fresh weight
A3: Spring cereals | B3: April | C3: May | D3: June | E3: June | F3: July | G3: July | H3: August | I3: August | J3: August | K3: Sept.
A4: BBCH | B4: 0-9 | C4: 10-29 | D4: 30-39 | E4: 40-69 | F4: 40-69 | G4: 70-89 | H4: 70-89 | I4: Pre-harv. | J4: Stubble | K4: Stubble
I5: desiccat. | J5: treatm. | K5: treatm.
A6: monocot leaves | C6: 0.16 | D6: 0.06 | E6: 0.06 | F6: 0.07 | G6: 0.05 | H6: 0.07 | I6: 0.04 | J6: 0.04 | K6: 0.03
A7: maize foliage
A8: dicot leaves | D8: 0.03 | E8: 0.03 | F8: 0.03 | G8: 0.03 | H8: 0.03 | I8: 0.02 | J8: 0.02 | K8: 0.02
A9: crop seeds | B9: 0.29 | C9: 0.3 | D9: 0.32 | E9: 0.32 | F9: 0.32 | G9: 0.48 | H9: 0.37 | I9: 0.39 | J9: 0.39 | K9: 0.34
A10: potato tubers or plant bulbs
A11: weed seeds | C11: 0.04 | D11: 0.25 | E11: 0.25 | F11: 0.21 | G11: 0.16 | H11: 0.2 | I11: 0.21 | J11: 0.21 | K11: 0.21
A12: citrus fruit
A13: fruit from cucurbitaceous vegetable crops
A14: fruit from solanaceous vegetable crops
A15: pome fruit
A16: stone fruit
A17: fruit from small fruit crops
A18: strawberries
A19: figs
A20: flower buds
A21: fruits from forests
A22: legume vegetables
A23: tree nuts and seeds
A24: ground dwelling arthropods | B24: 0.45 | C24: 0.1 | D24: 0.25 | E24: 0.25 | F24: 0.37 | G24: 0.28 | H24: 0.28 | I24: 0.29 | J24: 0.29 | K24: 0.26
A25: foliar dwelling arthropods
A26: soil invertebrates | B26: 0.26 | C26: 0.4 | D26: 0.09 | E26: 0.09 | H26: 0.05 | I26: 0.05 | J26: 0.05 | K26: 0.14
A27: Sum | B27: =SUM(B6:B26) -> 1 | C27: 1 | D27: 1 | E27: 1 | F27: 1 | G27: 1 | H27: 1 | I27: 1 | J27: 1 | K27: 1
A30: Winter cereals | B30: Sept. | C30: Oct. | D30: Sept. | E30: Oct. | F30: Nov. | G30: March | H30: April | I30: May | J30: May | K30: June | L30: May | M30: June | N30: July | O30: July | P30: August | Q30: July | R30: August | S30: August | T30: Sept.
A31: BBCH | B31: 0-9 | C31: 0-9 | D31: 10-19 | E31: 10-19 | F31: 10-19 | G31: 10-19 | H31: 10-29 | I31: 10-29 | J31: 30-39 | K31: 30-39 | L31: 40-59 | M31: 40-69 | N31: 60-69 | O31: 70-89 | P31: 70-89 | Q31: Pre-harv. | R31: Pre-harv. | S31: Stubble | T31: Stubble
Q32: desiccat. | R32: desiccat. | S32: treatm. | T32: treatm.
A33: monocot leaves | D33: 0.09 | E33: 0.25 | F33: 0.4 | G33: 0.23 | H33: 0.24 | I33: 0.16 | J33: 0.11 | K33: 0.06 | L33: 0.11 | M33: 0.06 | N33: 0.07 | O33: 0.05 | P33: 0.07 | Q33: 0.03 | R33: 0.04 | S33: 0.04 | T33: 0.03
A34: maize foliage
A35: dicot leaves | J35: 0.05 | K35: 0.03 | L35: 0.05 | M35: 0.03 | N35: 0.03 | O35: 0.03 | P35: 0.03 | Q35: 0.01 | R35: 0.02 | S35: 0.02 | T35: 0.02
A36: crop seeds | B36: 0.42 | C36: 0.55 | D36: 0.33 | E36: 0.3 | F36: 0.4 | G36: 0.25 | H36: 0.05 | I36: 0.3 | J36: 0.3 | K36: 0.32 | L36: 0.3 | M36: 0.32 | N36: 0.32 | O36: 0.48 | P36: 0.37 | Q36: 0.5 | R36: 0.39 | S36: 0.39 | T36: 0.34
A37: potato tubers or plant bulbs
A38: weed seeds | B38: 0.2 | C38: 0.15 | D38: 0.2 | E38: 0.15 | F38: 0.08 | I38: 0.04 | J38: 0.04 | K38: 0.25 | L38: 0.04 | M38: 0.25 | N38: 0.21 | O38: 0.16 | P38: 0.2 | Q38: 0.17 | R38: 0.21 | S38: 0.21 | T38: 0.21
A39: citrus fruit
A40: fruit from cucurbitaceous vegetable crops
A41: fruit from solanaceous vegetable crops
A42: pome fruit
A43: stone fruit
A44: fruit from small fruit crops
A45: strawberries
A46: figs
A47: flower buds
A48: fruits from forests
A49: legume vegetables
A50: tree nuts and seeds
A51: ground dwelling arthropods | B51: 0.25 | C51: 0.3 | D51: 0.25 | E51: 0.3 | F51: 0.09 | G51: 0.27 | H51: 0.45 | I51: 0.1 | J51: 0.1 | K51: 0.25 | L51: 0.1 | M51: 0.25 | N51: 0.37 | O51: 0.28 | P51: 0.28 | Q51: 0.29 | R51: 0.29 | S51: 0.29 | T51: 0.26
A52: foliar dwelling arthropods
A53: soil invertebrates | B53: 0.13 | D53: 0.13 | F53: 0.03 | G53: 0.25 | H53: 0.26 | I53: 0.4 | J53: 0.4 | K53: 0.09 | L53: 0.4 | M53: 0.09 | P53: 0.05 | R53: 0.05 | S53: 0.05 | T53: 0.14
A54: Sum | B54: =SUM(B33:B53) -> 1 | C54: 1 | D54: 1 | E54: 1 | F54: 1 | G54: 1 | H54: 1 | I54: 1 | J54: 1 | K54: 1 | L54: 1 | M54: 1 | N54: 1 | O54: 1 | P54: 1 | Q54: 1 | R54: 1 | S54: 1 | T54: 1
A57: Winter cereals - Green (1979) alternative | B57: Sept. | C57: Sept. | D57: Jan.- | E57: April- | F57: April-
B58: -Dec. | C58: -Dec. | D58: March | E58: June | F58: June
A59: BBCH | B59: 0-9 | C59: 10-19 | D59: 10-19 | E59: 14-39 | F59: 40-69
A60: monocot leaves | D60: 0.08 | E60: 0.01 | F60: 0.01
A61: maize foliage
A62: dicot leaves
A63: crop seeds | B63: 0.6 | C63: 0.6 | D63: 0.55 | E63: 0.06 | F63: 0.06
A64: potato tubers or plant bulbs
A65: weed seeds | B65: 0.24 | C65: 0.24 | D65: 0.05 | E65: 0.8 | F65: 0.8
A66: citrus fruit
A67: fruit from cucurbitaceous vegetable crops
A68: fruit from solanaceous vegetable crops
A69: pome fruit
A70: stone fruit
A71: fruit from small fruit crops
A72: strawberries
A73: figs
A74: flower buds
A75: fruits from forests
A76: legume vegetables
A77: tree nuts and seeds
A78: ground dwelling arthropods | B78: 0.16 | C78: 0.16 | D78: 0.16 | E78: 0.12 | F78: 0.12
A79: foliar dwelling arthropods
A80: soil invertebrates | D80: 0.16 | E80: 0.01 | F80: 0.01
A81: Sum | B81: =SUM(B60:B80) -> 1 | C81: =SUM(C60:C80) -> 1 | D81: =SUM(D60:D80) -> 1 | E81: =SUM(E60:E80) -> 1 | F81: =SUM(F60:F80) -> 1
A84: Maize | B84: April | C84: May | D84: May | E84: June | F84: June | G84: July
A85: BBCH | B85: 0-9 | C85: 0-9 | D85: 10-19 | E85: 10-19 | F85: 30-39 | G85: 30-39
A87: monocot leaves | D87: 0.11 | E87: 0.06 | F87: 0.08 | G87: 0.1
A88: maize foliage | D88: 0.11 | E88: 0.06
A89: dicot leaves | F89: 0.04 | G89: 0.05
A90: crop seeds | B90: 0.29 | C90: 0.29 | D90: 0.05 | E90: 0.05 | F90: 0.05 | G90: 0.05
A91: potato tubers or plant bulbs
A92: weed seeds | C92: 0.05 | D92: 0.05 | E92: 0.35 | F92: 0.35 | G92: 0.29
A93: citrus fruit
A94: fruit from cucurbitaceous vegetable crops
A95: fruit from solanaceous vegetable crops
A96: pome fruit
A97: stone fruit
A98: fruit from small fruit crops
A99: strawberries
A100: figs
A101: flower buds
A102: fruits from forests
A103: legume vegetables
A104: tree nuts and seeds
A105: ground dwelling arthropods | B105: 0.45 | C105: 0.13 | D105: 0.14 | E105: 0.35 | F105: 0.35 | G105: 0.51
A106: foliar dwelling arthropods
A107: soil invertebrates | B107: 0.26 | C107: 0.53 | D107: 0.54 | E107: 0.13 | F107: 0.13
A108: Sum | B108: =SUM(B87:B107) -> 1 | C108: 1 | D108: 1 | E108: 1 | F108: 1 | G108: 1
A111: Spring oilseed rape | B111: April | C111: April | D111: May | E111: May | F111: May | G111: June | H111: July | I111: July | J111: August | K111: July | L111: August | M111: August | N111: Sept.
A112: BBCH | B112: 0-9 | C112: 10-19 | D112: 10-19 | E112: 20-39 | F112: 40-59 | G112: 40-79 | H112: 60-79 | I112: 80-89 | J112: 80-89 | K112: Pre-harv. | L112: Pre-harv. | M112: Stubble | N112: Stubble
K113: desiccat. | L113: desiccat. | M113: treatm. | N113: treatm.
A114: monocot leaves | E114: 0.07 | F114: 0.07 | G114: 0.04 | H114: 0.05 | I114: 0.05 | J114: 0.05 | K114: 0.02 | L114: 0.02 | M114: 0.02 | N114: 0.02
A115: maize foliage
A116: dicot leaves | C116: 0.24 | D116: 0.22 | E116: 0.15 | F116: 0.15 | G116: 0.08 | H116: 0.1 | I116: 0.09 | J116: 0.09 | K116: 0.05 | L116: 0.05 | M116: 0.05 | N116: 0.04
A117: crop seeds | B117: 0.12 | C117: 0.05 | D117: 0.05 | E117: 0.05 | F117: 0.05 | G117: 0.05 | H117: 0.05 | I117: 0.05 | J117: 0.05 | K117: 0.05 | L117: 0.05 | M117: 0.05 | N117: 0.05
A118: potato tubers or plant bulbs
A119: weed seeds | D119: 0.05 | E119: 0.05 | F119: 0.05 | G119: 0.35 | H119: 0.29 | I119: 0.34 | J119: 0.35 | K119: 0.41 | L119: 0.42 | M119: 0.38 | N119: 0.35
A120: citrus fruit
A121: fruit from cucurbitaceous vegetable crops
A122: fruit from solanaceous vegetable crops
A123: pome fruit
A124: stone fruit
A125: fruit from small fruit crops
A126: strawberries
A127: figs
A128: flower buds
A129: fruits from forests
A130: legume vegetables
A131: tree nuts and seeds
A132: ground dwelling arthropods | B132: 0.56 | C132: 0.45 | D132: 0.14 | E132: 0.14 | F132: 0.14 | G132: 0.35 | H132: 0.51 | I132: 0.47 | J132: 0.39 | K132: 0.47 | L132: 0.39 | M132: 0.42 | N132: 0.35
A133: foliar dwelling arthropods
A134: soil invertebrates | B134: 0.32 | C134: 0.26 | D134: 0.54 | E134: 0.54 | F134: 0.54 | G134: 0.13 | J134: 0.07 | L134: 0.07 | M134: 0.08 | N134: 0.19
A135: Sum | B135: =SUM(B114:B134) -> 1 | C135: 1 | D135: 1 | E135: 1 | F135: 1 | G135: 1 | H135: 1 | I135: 1 | J135: 1 | K135: 1 | L135: 1 | M135: 1 | N135: 1
A138: Winter oilseed rape | B138: August | C138: Sept. | D138: Oct. | E138: March | F138: April | G138: Oct. | H138: Nov. | I138: March | J138: April | K138: April | L138: May | M138: June | N138: June | O138: July | P138: July | Q138: July | R138: August
A139: BBCH | B139: 0-9 | C139: 10-19 | D139: 10-19 | E139: 10-19 | F139: 10-19 | G139: 20-39 | H139: 20-39 | I139: 20-39 | J139: 20-39 | K139: 40-59 | L139: 40-79 | M139: 70-79 | N139: 80-89 | O139: 80-89 | P139: Pre-harv. | Q139: Stubble | R139: Stubble
P140: desiccat. | Q140: treatm. | R140: treatm.
A141: monocot leaves | G141: 0.11 | H141: 0.21 | I141: 0.09 | J141: 0.08 | K141: 0.08 | L141: 0.07 | M141: 0.04 | N141: 0.04 | O141: 0.05 | P141: 0.02 | Q141: 0.02 | R141: 0.02
A142: maize foliage
A143: dicot leaves | C143: 0.13 | D143: 0.34 | E143: 0.27 | F143: 0.24 | G143: 0.23 | H143: 0.42 | I143: 0.18 | J143: 0.16 | K143: 0.16 | L143: 0.15 | M143: 0.08 | N143: 0.08 | O143: 0.09 | P143: 0.05 | Q143: 0.05 | R143: 0.05
A144: crop seeds | B144: 0.46 | C144: 0.05 | D144: 0.05 | E144: 0.05 | F144: 0.05 | G144: 0.05 | H144: 0.05 | I144: 0.05 | J144: 0.05 | K144: 0.05 | L144: 0.05 | M144: 0.05 | N144: 0.05 | O144: 0.05 | P144: 0.05 | Q144: 0.05 | R144: 0.05
A145: potato tubers or plant bulbs
A146: weed seeds | C146: 0.28 | D146: 0.2 | E146: 0.09 | G146: 0.2 | H146: 0.13 | I146: 0.09 | L146: 0.05 | M146: 0.35 | N146: 0.4 | O146: 0.34 | P146: 0.41 | Q146: 0.37 | R146: 0.38
A147: citrus fruit
A148: fruit from cucurbitaceous vegetable crops
A149: fruit from solanaceous vegetable crops
A150: pome fruit
A151: stone fruit
A152: fruit from small fruit crops
A153: strawberries
A154: figs
A155: flower buds
A156: fruits from forests
A157: legume vegetables
A158: tree nuts and seeds
A159: ground dwelling arthropods | B159: 0.46 | C159: 0.36 | D159: 0.41 | E159: 0.31 | F159: 0.45 | G159: 0.41 | H159: 0.14 | I159: 0.31 | J159: 0.45 | K159: 0.45 | L159: 0.14 | M159: 0.35 | N159: 0.32 | O159: 0.47 | P159: 0.47 | Q159: 0.51 | R159: 0.42
A160: foliar dwelling arthropods
A161: soil invertebrates | B161: 0.08 | C161: 0.18 | E161: 0.28 | F161: 0.26 | H161: 0.05 | I161: 0.28 | J161: 0.26 | K161: 0.26 | L161: 0.54 | M161: 0.13 | N161: 0.11 | R161: 0.08
A162: Sum | B162: =SUM(B141:B161) -> 1 | C162: 1 | D162: 1 | E162: 1 | F162: 1 | G162: 1 | H162: 1 | I162: 1 | J162: 1 | K162: 1 | L162: 1 | M162: 1 | N162: 1 | O162: 1 | P162: 1 | Q162: 1 | R162: 1
A165: Beets | B165: April | C165: May | D165: June | E165: June | F165: July | G165: August | H165: Sept. | I165: Oct.
A166: BBCH | B166: 0-9 | C166: 10-19 | D166: 10-19 | E166: 20-39 | F166: 40-49 | G166: 40-49 | H166: 40-49 | I166: 40-49
A168: monocot leaves | E168: 0.04 | F168: 0.05 | G168: 0.05 | H168: 0.04 | I168: 0.11
A169: maize foliage
A170: dicot leaves | C170: 0.22 | D170: 0.12 | E170: 0.08 | F170: 0.1 | G170: 0.1 | H170: 0.09 | I170: 0.23
A171: crop seeds | B171: 0.12 | C171: 0.05 | D171: 0.05 | E171: 0.05 | F171: 0.05 | G171: 0.05 | H171: 0.05 | I171: 0.05
A172: potato tubers or plant bulbs
A173: weed seeds | C173: 0.05 | D173: 0.35 | E173: 0.35 | F173: 0.29 | G173: 0.3 | H173: 0.28 | I173: 0.2
A174: citrus fruit
A175: fruit from cucurbitaceous vegetable crops
A176: fruit from solanaceous vegetable crops
A177: pome fruit
A178: stone fruit
A179: fruit from small fruit crops
A180: strawberries
A181: figs
A182: flower buds
A183: fruits from forests
A184: legume vegetables
A185: tree nuts and seeds
A186: ground dwelling arthropods | B186: 0.56 | C186: 0.14 | D186: 0.35 | E186: 0.35 | F186: 0.51 | G186: 0.42 | H186: 0.36 | I186: 0.41
A187: foliar dwelling arthropods
A188: soil invertebrates | B188: 0.32 | C188: 0.54 | D188: 0.13 | E188: 0.13 | G188: 0.08 | H188: 0.18
A189: Sum | B189: =SUM(B168:B188) -> 1 | C189: 1 | D189: 1 | E189: 1 | F189: 1 | G189: 1 | H189: 1 | I189: 1
A192: Potatoes | B192: April | C192: May | D192: June | E192: July | F192: August | G192: August | H192: Sept.
A193: BBCH | B193: 0-9 | C193: 10-19 | D193: 20-39 | E193: 40-89 | F193: 45-89 | G193: 90-99 | H193: 90-99
G194: (desiccat.) | H194: (desiccat.)
A195: monocot leaves | C195: 0.06 | D195: 0.03 | E195: 0.04 | F195: 0.04 | G195: 0.02 | H195: 0.02
A196: maize foliage
A197: dicot leaves | C197: 0.06 | D197: 0.03 | E197: 0.04 | F197: 0.04 | G197: 0.02 | H197: 0.02
A198: crop seeds | B198: 0.05 | C198: 0.05 | D198: 0.05 | E198: 0.05 | F198: 0.05 | G198: 0.05 | H198: 0.05
A199: potato tubers or plant bulbs
A200: weed seeds | C200: 0.06 | D200: 0.37 | E200: 0.32 | F200: 0.33 | G200: 0.34 | H200: 0.32
A201: citrus fruit
A202: fruit from cucurbitaceous vegetable crops
A203: fruit from solanaceous vegetable crops
A204: pome fruit
A205: stone fruit
A206: fruit from small fruit crops
A207: strawberries
A208: figs
A209: flower buds
A210: fruits from forests
A211: legume vegetables
A212: tree nuts and seeds
A213: ground dwelling arthropods | B213: 0.6 | C213: 0.16 | D213: 0.38 | E213: 0.55 | F213: 0.46 | G213: 0.48 | H213: 0.39
A214: foliar dwelling arthropods
A215: soil invertebrates | B215: 0.35 | C215: 0.61 | D215: 0.14 | F215: 0.08 | G215: 0.09 | H215: 0.2
A216: Sum | B216: =SUM(B195:B215) -> 1 | C216: 1 | D216: 1 | E216: 1 | F216: 1 | G216: 1 | H216: 1
A219: Pulses | B219: April | C219: May | D219: May | E219: June | F219: May | G219: June | H219: June | I219: July | J219: August | K219: July | L219: August
... 198 more rows

Sheet PD Skylark
A1: Skylark PD - dry weight
A3: Spring cereals | B3: April | C3: May | D3: June | E3: June | F3: July | G3: July | H3: August | I3: August | J3: August | K3: Sept.
A4: BBCH | B4: 0-9 | C4: 10-29 | D4: 30-39 | E4: 40-69 | F4: 40-69 | G4: 70-89 | H4: 70-89 | I4: Pre-harv. | J4: Stubble | K4: Stubble
I5: desiccat. | J5: treatm. | K5: treatm.
A6: monocot leaves | C6: 0.38 | D6: 0.17 | E6: 0.17 | F6: 0.13 | G6: 0.1 | H6: 0.01 | I6: 0.01 | J6: 0.01 | K6: 0.01
A7: maize foliage
A8: dicot leaves | D8: 0.14 | E8: 0.14 | F8: 0.06 | G8: 0.05 | H8: 0.05 | I8: 0.02 | J8: 0.02 | K8: 0.01
A9: crop seeds | B9: 0.46 | C9: 0.11 | D9: 0.06 | E9: 0.06 | F9: 0.06 | G9: 0.27 | H9: 0.56 | I9: 0.58 | J9: 0.58 | K9: 0.72
A10: potato tubers or plant bulbs
A11: weed seeds | B11: 0.33 | C11: 0.23 | D11: 0.23 | E11: 0.23 | F11: 0.09 | G11: 0.07 | H11: 0.14 | I11: 0.14 | J11: 0.14 | K11: 0.13
A12: citrus fruit
A13: fruit from cucurbitaceous vegetable crops
A14: fruit from solanaceous vegetable crops
A15: pome fruit
A16: stone fruit
A17: fruit from small fruit crops
A18: strawberries
A19: figs
A20: flower buds
A21: fruits from forests
A22: legume vegetables
A23: tree nuts and seeds
A24: ground dwelling arthropods | B24: 0.21 | C24: 0.28 | D24: 0.3 | E24: 0.2 | F24: 0.33 | G24: 0.26 | H24: 0.12 | I24: 0.19 | J24: 0.25 | K24: 0.13
A25: foliar dwelling arthropods | D25: 0.1 | E25: 0.2 | F25: 0.33 | G25: 0.25 | H25: 0.12 | I25: 0.06
A26: soil invertebrates
A27: Sum | B27: =SUM(B6:B26) -> 1 | C27: =SUM(C6:C26) -> 1 | D27: 1 | E27: 1 | F27: 1 | G27: 1 | H27: 1 | I27: 1 | J27: 1 | K27: 1
A30: Winter cereals | B30: Sept. | C30: Sept. | D30: April | E30: May | F30: May | G30: June | H30: May | I30: June | J30: July | K30: July | L30: August | M30: July | N30: August | O30: August | P30: Sept.
A31: BBCH | B31: 0-9 | C31: 10-19 | D31: 10-29 | E31: 10-29 | F31: 30-39 | G31: 30-39 | H31: 40-59 | I31: 40-69 | J31: 60-69 | K31: 70-89 | L31: 70-89 | M31: Pre-harv. | N31: Pre-harv. | O31: Stubble | P31: Stubble
M32: desiccat. | N32: desiccat. | O32: treatm. | P32: treatm.
A33: monocot leaves | C33: 0.03 | D33: 0.46 | E33: 0.4 | F33: 0.25 | G33: 0.17 | H33: 0.25 | I33: 0.17 | J33: 0.13 | K33: 0.1 | L33: 0.01 | M33: 0.05 | O33: 0.01 | P33: 0.01
A34: maize foliage
A35: dicot leaves | F35: 0.15 | G35: 0.14 | H35: 0.15 | I35: 0.14 | J35: 0.06 | K35: 0.05 | L35: 0.05 | M35: 0.03 | N35: 0.03 | O35: 0.02 | P35: 0.01
A36: crop seeds | B36: 0.74 | C36: 0.71 | D36: 0.06 | E36: 0.06 | F36: 0.06 | G36: 0.06 | H36: 0.06 | I36: 0.06 | J36: 0.06 | K36: 0.27 | L36: 0.56 | M36: 0.29 | N36: 0.58 | O36: 0.58 | P36: 0.72
A37: potato tubers or plant bulbs
A38: weed seeds | B38: 0.13 | C38: 0.13 | D38: 0.29 | E38: 0.24 | F38: 0.24 | G38: 0.23 | H38: 0.24 | I38: 0.23 | J38: 0.09 | K38: 0.07 | L38: 0.14 | M38: 0.08 | N38: 0.14 | O38: 0.14 | P38: 0.13
A39: citrus fruit
A40: fruit from cucurbitaceous vegetable crops
A41: fruit from solanaceous vegetable crops
A42: pome fruit
A43: stone fruit
A44: fruit from small fruit crops
A45: strawberries
A46: figs
A47: flower buds
A48: fruits from forests
A49: legume vegetables
A50: tree nuts and seeds
A51: ground dwelling arthropods | B51: 0.13 | C51: 0.13 | D51: 0.19 | E51: 0.3 | F51: 0.22 | G51: 0.3 | H51: 0.15 | I51: 0.2 | J51: 0.33 | K51: 0.26 | L51: 0.12 | M51: 0.41 | N51: 0.19 | O51: 0.25 | P51: 0.13
A52: foliar dwelling arthropods | F52: 0.08 | G52: 0.1 | H52: 0.15 | I52: 0.2 | J52: 0.33 | K52: 0.25 | L52: 0.12 | M52: 0.14 | N52: 0.06
A53: soil invertebrates
A54: Sum | B54: =SUM(B33:B53) -> 1 | C54: 1 | D54: 1 | E54: 1 | F54: 1 | G54: 1 | H54: 1 | I54: 1 | J54: 1 | K54: 1 | L54: 1 | M54: 1 | N54: 1 | O54: 1 | P54: 1
A57: Maize | B57: April | C57: May | D57: May | E57: June | F57: June | G57: July
A58: BBCH | B58: 0-9 | C58: 0-9 | D58: 10-19 | E58: 10-19 | F58: 30-39 | G58: 30-39
A60: monocot leaves | D60: 0.2 | E60: 0.155 | F60: 0.17 | G60: 0.13
A61: maize foliage | D61: 0.2 | E61: 0.155
A62: dicot leaves | F62: 0.14 | G62: 0.06
A63: crop seeds | B63: 0.06 | C63: 0.06 | D63: 0.06 | E63: 0.06 | F63: 0.06 | G63: 0.06
A64: potato tubers or plant bulbs
A65: weed seeds | B65: 0.57 | C65: 0.42 | D65: 0.24 | E65: 0.23 | F65: 0.23 | G65: 0.09
A66: citrus fruit
A67: fruit from cucurbitaceous vegetable crops
A68: fruit from solanaceous vegetable crops
A69: pome fruit
A70: stone fruit
A71: fruit from small fruit crops
A72: strawberries
A73: figs
A74: flower buds
A75: fruits from forests
A76: legume vegetables
A77: tree nuts and seeds
A78: ground dwelling arthropods | B78: 0.37 | C78: 0.52 | D78: 0.3 | E78: 0.4 | F78: 0.3 | G78: 0.49
A79: foliar dwelling arthropods | F79: 0.1 | G79: 0.17
A80: soil invertebrates
A81: Sum | B81: =SUM(B60:B80) -> 1 | C81: 1 | D81: 1 | E81: 1 | F81: 1 | G81: 1
A84: Spring oilseed rape | B84: April | C84: April | D84: May | E84: May | F84: May | G84: June | H84: August | I84: Sept.
A85: BBCH | B85: 0-9 | C85: 10-19 | D85: 10-19 | E85: 20-39 | F85: 40-59 | G85: 40-59 | H85: Stubble | I85: Stubble
H86: treatm. | I86: treatm.
A87: monocot leaves | E87: 0.15 | F87: 0.15 | G87: 0.09 | H87: 0.01 | I87: 0.01
A88: maize foliage
A89: dicot leaves | C89: 0.46 | D89: 0.4 | E89: 0.17 | F89: 0.17 | G89: 0.16 | H89: 0.04 | I89: 0.02
A90: crop seeds | B90: 0.06 | C90: 0.06 | D90: 0.06 | E90: 0.06 | F90: 0.06 | G90: 0.06 | H90: 0.06 | I90: 0.06
A91: potato tubers or plant bulbs
A92: weed seeds | B92: 0.57 | C92: 0.29 | D92: 0.24 | E92: 0.28 | F92: 0.28 | G92: 0.25 | H92: 0.48 | I92: 0.61
A93: citrus fruit
A94: fruit from cucurbitaceous vegetable crops
A95: fruit from solanaceous vegetable crops
A96: pome fruit
A97: stone fruit
A98: fruit from small fruit crops
A99: strawberries
A100: figs
A101: flower buds
A102: fruits from forests
A103: legume vegetables
A104: tree nuts and seeds
A105: ground dwelling arthropods | B105: 0.37 | C105: 0.19 | D105: 0.3 | E105: 0.26 | F105: 0.17 | G105: 0.22 | H105: 0.41 | I105: 0.3
A106: foliar dwelling arthropods | E106: 0.08 | F106: 0.17 | G106: 0.22
A107: soil invertebrates
A108: Sum | B108: =SUM(B87:B107) -> 1 | C108: 1 | D108: 1 | E108: 1 | F108: 1 | G108: 1 | H108: 1 | I108: 1
A111: Winter oil-seed rape | B111: August | C111: Sept. | D111: April | E111: April | F111: April | G111: May | H111: July | I111: August
A112: BBCH | B112: 0-9 | C112: 10-19 | D112: 10-19 | E112: 20-39 | F112: 40-59 | G112: 40-59 | H112: Stubble | I112: Stubble
H113: treatm. | I113: treatm.
A114: monocot leaves | E114: 0.19 | F114: 0.19 | G114: 0.15 | H114: 0.03 | I114: 0.01
A115: maize foliage
A116: dicot leaves | C116: 0.1 | D116: 0.46 | E116: 0.16 | F116: 0.16 | G116: 0.17 | H116: 0.03 | I116: 0.04
A117: crop seeds | B117: 0.06 | C117: 0.06 | D117: 0.06 | E117: 0.06 | F117: 0.06 | G117: 0.06 | H117: 0.06 | I117: 0.06
A118: potato tubers or plant bulbs
A119: weed seeds | B119: 0.51 | C119: 0.42 | D119: 0.29 | E119: 0.36 | F119: 0.36 | G119: 0.28 | H119: 0.31 | I119: 0.48
A120: citrus fruit
A121: fruit from cucurbitaceous vegetable crops
A122: fruit from solanaceous vegetable crops
A123: pome fruit
A124: stone fruit
A125: fruit from small fruit crops
A126: strawberries
A127: figs
A128: flower buds
A129: fruits from forests
A130: legume vegetables
A131: tree nuts and seeds
A132: ground dwelling arthropods | B132: 0.43 | C132: 0.42 | D132: 0.19 | E132: 0.17 | F132: 0.12 | G132: 0.17 | H132: 0.57 | I132: 0.41
A133: foliar dwelling arthropods | E133: 0.06 | F133: 0.11 | G133: 0.17
A134: soil invertebrates
A135: Sum | B135: =SUM(B114:B134) -> 1 | C135: 1 | D135: 1 | E135: 1 | F135: 1 | G135: 1 | H135: 1 | I135: 1
A138: Beets | B138: April | C138: May | D138: June | E138: June | F138: July | G138: August | H138: Sept.
A139: BBCH | B139: 0-9 | C139: 10-19 | D139: 10-19 | E139: 20-39 | F139: 40-49 | G139: 40-49 | H139: 40-49
A141: monocot leaves | E141: 0.09 | F141: 0.07 | G141: 0.01 | H141: 0.02
A142: maize foliage
A143: dicot leaves | C143: 0.63 | D143: 0.31 | E143: 0.16 | F143: 0.07 | G143: 0.11 | H143: 0.07
A144: crop seeds | B144: 0.06 | D144: 0.06 | E144: 0.06 | F144: 0.06 | G144: 0.06 | H144: 0.06
A145: potato tubers or plant bulbs
A146: weed seeds | B146: 0.57 | C146: 0.21 | D146: 0.23 | E146: 0.25 | F146: 0.1 | G146: 0.3 | H146: 0.43
A147: citrus fruit
A148: fruit from cucurbitaceous vegetable crops
A149: fruit from solanaceous vegetable crops
A150: pome fruit
A151: stone fruit
A152: fruit from small fruit crops
A153: strawberries
A154: figs
A155: flower buds
A156: fruits from forests
A157: legume vegetables
A158: tree nuts and seeds
A159: ground dwelling arthropods | B159: 0.37 | C159: 0.16 | D159: 0.4 | E159: 0.33 | F159: 0.35 | G159: 0.26 | H159: 0.21
A160: foliar dwelling arthropods | E160: 0.11 | F160: 0.35 | G160: 0.26 | H160: 0.21
A161: soil invertebrates
A162: Sum | B162: =SUM(B141:B161) -> 1 | C162: 1 | D162: 1 | E162: 1 | F162: 1 | G162: 1 | H162: 1
A165: Potatoes | B165: April | C165: May | D165: June | E165: July | F165: August | G165: August | H165: Sept.
A166: BBCH | B166: 0-9 | C166: 10-19 | D166: 20-39 | E166: 40-89 | F166: 45-89 | G166: 90-99 | H166: 90-99
G167: (desiccat.) | H167: (desiccat.)
A168: monocot leaves | C168: 0.16 | D168: 0.1 | E168: 0.07 | F168: 0.01 | G168: 0.01 | H168: 0.01
A169: maize foliage
A170: dicot leaves | C170: 0.09 | D170: 0.08 | E170: 0.03 | F170: 0.05 | G170: 0.03 | H170: 0.02
A171: crop seeds | B171: 0.06 | C171: 0.06 | D171: 0.06 | E171: 0.06 | F171: 0.06 | G171: 0.06 | H171: 0.06
A172: potato tubers or plant bulbs
A173: weed seeds | B173: 0.57 | C173: 0.31 | D173: 0.28 | E173: 0.1 | F173: 0.32 | G173: 0.33 | H173: 0.46
A174: citrus fruit
A175: fruit from cucurbitaceous vegetable crops
A176: fruit from solanaceous vegetable crops
A177: pome fruit
A178: stone fruit
A179: fruit from small fruit crops
A180: strawberries
A181: figs
A182: flower buds
A183: fruits from forests
A184: legume vegetables
A185: tree nuts and seeds
A186: ground dwelling arthropods | B186: 0.37 | C186: 0.38 | D186: 0.36 | E186: 0.37 | F186: 0.28 | G186: 0.43 | H186: 0.34
A187: foliar dwelling arthropods | D187: 0.12 | E187: 0.37 | F187: 0.28 | G187: 0.14 | H187: 0.11
A188: soil invertebrates
A189: Sum | B189: =SUM(B168:B188) -> 1 | C189: 1 | D189: 1 | E189: 1 | F189: 1 | G189: 1 | H189: 1
A192: Pulses | B192: April | C192: May | D192: May | E192: June | F192: May | G192: June | H192: June | I192: July | J192: August | K192: July | L192: August
A193: BBCH | B193: 0-9 | C193: 0-9 | D193: 10-19 | E193: 10-19 | F193: 20-39 | G193: 20-39 | H193: 40-79 | I193: 40-79 | J193: 60-79 | K193: 80-99 | L193: 80-99
K194: (desiccat.) | L194: (desiccat.)
A195: monocot leaves | F195: 0.15 | G195: 0.09 | H195: 0.09 | I195: 0.07 | J195: 0.01 | K195: 0.04 | L195: 0.01
A196: maize foliage
A197: dicot leaves | D197: 0.4 | E197: 0.31 | F197: 0.17 | G197: 0.16 | H197: 0.16 | I197: 0.07 | J197: 0.11 | K197: 0.04 | L197: 0.06
A198: crop seeds | B198: 0.06 | C198: 0.06 | D198: 0.06 | E198: 0.06 | F198: 0.06 | G198: 0.06 | H198: 0.06 | I198: 0.06 | J198: 0.06 | K198: 0.06 | L198: 0.06
A199: potato tubers or plant bulbs
A200: weed seeds | B200: 0.57 | C200: 0.42 | D200: 0.24 | E200: 0.23 | F200: 0.28 | G200: 0.25 | H200: 0.25 | I200: 0.1 | J200: 0.3 | K200: 0.1 | L200: 0.32
A201: citrus fruit
A202: fruit from cucurbitaceous vegetable crops
A203: fruit from solanaceous vegetable crops
A204: pome fruit
A205: stone fruit
A206: fruit from small fruit crops
A207: strawberries
A208: figs
A209: flower buds
A210: fruits from forests
A211: legume vegetables
A212: tree nuts and seeds
A213: ground dwelling arthropods | B213: 0.37 | C213: 0.52 | D213: 0.3 | E213: 0.4 | F213: 0.26 | G213: 0.33 | H213: 0.22 | I213: 0.35 | J213: 0.26 | K213: 0.57 | L213: 0.41
A214: foliar dwelling arthropods | F214: 0.08 | G214: 0.11 | H214: 0.22 | I214: 0.35 | J214: 0.26 | K214: 0.19 | L214: 0.14
A215: soil invertebrates
A216: Sum | B216: =SUM(B195:B215) -> 1 | C216: 1 | D216: 1 | E216: 1 | F216: 1 | G216: 1 | H216: 1 | I216: 1 | J216: 1 | K216: 1 | L216: 1
A219: Field grown vegetables | B219: April | C219: May | D219: June | E219: May | F219: June | G219: July | H219: August | I219: May | J219: June | K219: July | L219: August | M219: Sept. | N219: May | O219: June | P219: July | Q219: August | R219: Sept.
... 96 more rows
